[Event "*** Titled Tuesday Blitz"]
[Site "Chess.com"]
[Date "2021.02.16"]
[Round "3"]
[White "Sadykov_Ramil"]
[Black "TigrVShlyape"]
[Result "0-1"]
[WhiteElo "2545"]
[BlackElo "2915"]
[TimeControl "180+1"]
[EndTime "10:29:30 PST"]
[Termination "TigrVShlyape won on time"]

1. e4 {[%clk 0:03:00.9]} 1... e5 {[%clk 0:02:58.4]} 2. Nf3 {[%clk 0:03:00.4]}
2... Nc6 {[%clk 0:02:58.2]} 3. Bc4 {[%clk 0:02:57.8]} 3... Nf6 {[%clk
0:02:57.6]} 4. d3 {[%clk 0:02:51.3]} 4... h6 {[%clk 0:02:57.2]} 5. O-O {[%clk
0:02:46.8]} 5... d6 {[%clk 0:02:57.2]} 6. h3 {[%clk 0:02:44.9]} 6... g6 {[%clk
0:02:56.7]} 7. Re1 {[%clk 0:02:29.4]} 7... Bg7 {[%clk 0:02:56.4]} 8. c3 {[%clk
0:02:29.4]} 8... O-O {[%clk 0:02:56]} 9. a4 {[%clk 0:02:24.5]} 9... a5 {[%clk
0:02:44.4]} 10. Ba2 {[%clk 0:02:12.6]} 10... Kh8 {[%clk 0:02:43.3]} 11. Nbd2
{[%clk 0:02:05.4]} 11... Be6 {[%clk 0:02:34.1]} 12. Nf1 {[%clk 0:01:41.1]} 12...
Bxa2 {[%clk 0:02:31.8]} 13. Rxa2 {[%clk 0:01:42]} 13... Qd7 {[%clk 0:02:19]} 14.
b3 {[%clk 0:01:25.8]} 14... Rfe8 {[%clk 0:02:18]} 15. Rae2 {[%clk 0:01:25.2]}
15... d5 {[%clk 0:02:14.7]} 16. Qc2 {[%clk 0:01:13.5]} 16... Rad8 {[%clk
0:02:13.6]} 17. Ne3 {[%clk 0:00:58.9]} 17... dxe4 {[%clk 0:02:12.6]} 18. dxe4
{[%clk 0:00:59]} 18... Qd3 {[%clk 0:02:12.7]} 19. Nc4 {[%clk 0:00:53.4]} 19...
Qxc2 {[%clk 0:02:09.6]} 20. Rxc2 {[%clk 0:00:54.3]} 20... Bf8 {[%clk 0:02:08.2]}
21. Kf1 {[%clk 0:00:48.2]} 21... Kg7 {[%clk 0:02:07.9]} 22. Rd2 {[%clk
0:00:42.4]} 22... Rxd2 {[%clk 0:02:06.6]} 23. Nfxd2 {[%clk 0:00:43.3]} 23... Bc5
{[%clk 0:02:00.6]} 24. Ke2 {[%clk 0:00:32.4]} 24... Nd7 {[%clk 0:01:56.1]} 25.
Nf1 {[%clk 0:00:29.3]} 25... Nf8 {[%clk 0:01:54.3]} 26. Be3 {[%clk 0:00:25.8]}
26... Ne6 {[%clk 0:01:54.2]} 27. g3 {[%clk 0:00:17.9]} 27... f5 {[%clk 0:01:47]}
28. Rb1 {[%clk 0:00:10]} 28... b6 {[%clk 0:01:44.9]} 29. g4 {[%clk 0:00:02.9]}
29... f4 {[%clk 0:01:38.3]} 30. Bxc5 {[%clk 0:00:02.4]} 30... Nxc5 {[%clk
0:01:38.4]} 31. Nfd2 {[%clk 0:00:01.8]} 31... Kf6 {[%clk 0:01:33.6]} 32. Nf3
{[%clk 0:00:01.9]} 32... Nxe4 {[%clk 0:01:32.7]} 0-1

[Event "*** Titled Tuesday Blitz"]
[Site "Chess.com"]
[Date "2021.02.16"]
[Round "3"]
[White "Azde"]
[Black "EugeneRougon"]
[Result "0-1"]
[WhiteElo "2437"]
[BlackElo "2731"]
[TimeControl "180+1"]
[EndTime "10:29:32 PST"]
[Termination "EugeneRougon won by resignation"]

1. d4 {[%clk 0:03:00.9]} 1... d5 {[%clk 0:02:55.8]} 2. c4 {[%clk 0:03:00.7]}
2... c6 {[%clk 0:02:55.8]} 3. Nc3 {[%clk 0:03:00.8]} 3... Nf6 {[%clk 0:02:55.8]}
4. Nf3 {[%clk 0:02:54.1]} 4... e6 {[%clk 0:02:54.6]} 5. Bg5 {[%clk 0:02:53.1]}
5... h6 {[%clk 0:02:53.6]} 6. Bxf6 {[%clk 0:02:53]} 6... Qxf6 {[%clk 0:02:54.5]}
7. e3 {[%clk 0:02:53.7]} 7... Nd7 {[%clk 0:02:51]} 8. Bd3 {[%clk 0:02:53.3]}
8... g6 {[%clk 0:02:50.7]} 9. O-O {[%clk 0:02:53.3]} 9... Bg7 {[%clk 0:02:50.7]}
10. e4 {[%clk 0:02:53.2]} 10... dxc4 {[%clk 0:02:48.5]} 11. Bxc4 {[%clk
0:02:52.3]} 11... e5 {[%clk 0:02:46.2]} 12. d5 {[%clk 0:02:50.1]} 12... O-O
{[%clk 0:02:46]} 13. Bb3 {[%clk 0:02:41.9]} 13... Nc5 {[%clk 0:02:43.8]} 14. Bc2
{[%clk 0:02:41.3]} 14... Bg4 {[%clk 0:02:43.3]} 15. h3 {[%clk 0:02:40.3]} 15...
Bxf3 {[%clk 0:02:43.1]} 16. Qxf3 {[%clk 0:02:41.2]} 16... Qxf3 {[%clk
0:02:42.9]} 17. gxf3 {[%clk 0:02:42.1]} 17... cxd5 {[%clk 0:02:38.4]} 18. Nxd5
{[%clk 0:02:41.4]} 18... Ne6 {[%clk 0:02:33.6]} 19. Kg2 {[%clk 0:02:31.1]} 19...
Rfd8 {[%clk 0:02:15.3]} 20. Rfd1 {[%clk 0:02:28.8]} 20... Bf8 {[%clk 0:02:10]}
21. Bd3 {[%clk 0:02:27.5]} 21... Kg7 {[%clk 0:02:07.1]} 22. Rac1 {[%clk
0:02:26.2]} 22... Rac8 {[%clk 0:02:04.7]} 23. Rxc8 {[%clk 0:01:35.8]} 23... Rxc8
{[%clk 0:02:04.5]} 24. Kf1 {[%clk 0:01:21.4]} 24... h5 {[%clk 0:01:52.6]} 25.
Ke2 {[%clk 0:01:16.6]} 25... h4 {[%clk 0:01:50]} 26. Kf1 {[%clk 0:01:14.3]}
26... Rc6 {[%clk 0:01:23.6]} 27. Kg2 {[%clk 0:01:09.1]} 27... Bc5 {[%clk
0:01:13.8]} 28. Rc1 {[%clk 0:01:03.7]} 28... Bd4 {[%clk 0:01:10.1]} 29. Rxc6
{[%clk 0:00:26.5]} 29... bxc6 {[%clk 0:01:09.8]} 30. Ne7 {[%clk 0:00:21.2]}
30... Nf4+ {[%clk 0:01:09.1]} 0-1

[Event "*** Titled Tuesday Blitz"]
[Site "Chess.com"]
[Date "2021.02.16"]
[Round "3"]
[White "jd001"]
[Black "oneshot007"]
[Result "0-1"]
[WhiteElo "2281"]
[BlackElo "2507"]
[TimeControl "180+1"]
[EndTime "10:29:32 PST"]
[Termination "oneshot007 won by resignation"]

1. d4 {[%clk 0:03:00.9]} 1... d5 {[%clk 0:03:00.2]} 2. c4 {[%clk 0:03:00.6]}
2... Nc6 {[%clk 0:03:00.7]} 3. e3 {[%clk 0:02:59.3]} 3... e6 {[%clk 0:02:53.6]}
4. Nc3 {[%clk 0:02:58.7]} 4... Nf6 {[%clk 0:02:53.1]} 5. Nf3 {[%clk 0:02:58.8]}
5... Bb4 {[%clk 0:02:52.5]} 6. a3 {[%clk 0:02:58.2]} 6... Bxc3+ {[%clk
0:02:50.7]} 7. bxc3 {[%clk 0:02:58.2]} 7... O-O {[%clk 0:02:49.7]} 8. Bd3 {[%clk
0:02:56.2]} 8... Ne7 {[%clk 0:02:48.4]} 9. cxd5 {[%clk 0:02:54.9]} 9... exd5
{[%clk 0:02:47.7]} 10. Qc2 {[%clk 0:02:50.1]} 10... c6 {[%clk 0:02:44.8]} 11.
O-O {[%clk 0:02:49.2]} 11... Re8 {[%clk 0:02:44.8]} 12. a4 {[%clk 0:02:48.8]}
12... Ng6 {[%clk 0:02:16.7]} 13. c4 {[%clk 0:02:46.6]} 13... Bg4 {[%clk
0:02:11.4]} 14. Nd2 {[%clk 0:02:39.5]} 14... Qd7 {[%clk 0:01:51.5]} 15. Ba3
{[%clk 0:02:35]} 15... Nh4 {[%clk 0:01:44]} 16. Rfb1 {[%clk 0:02:23]} 16... Bf5
{[%clk 0:01:38.8]} 17. Bxf5 {[%clk 0:02:19]} 17... Nxf5 {[%clk 0:01:39.5]} 18.
cxd5 {[%clk 0:02:18.1]} 18... cxd5 {[%clk 0:01:39.1]} 19. Nf3 {[%clk 0:02:07.3]}
19... Rac8 {[%clk 0:01:27.6]} 20. Qb3 {[%clk 0:02:06.5]} 20... b6 {[%clk
0:01:27.5]} 21. Ne5 {[%clk 0:02:05.9]} 21... Qe6 {[%clk 0:01:26]} 22. Rc1 {[%clk
0:02:01.1]} 22... Ne4 {[%clk 0:01:25.7]} 23. Qd3 {[%clk 0:01:47.7]} 23... f6
{[%clk 0:01:15.9]} 24. Nf3 {[%clk 0:01:47]} 24... g5 {[%clk 0:01:15.7]} 25. h3
{[%clk 0:01:42.4]} 25... h5 {[%clk 0:01:11.4]} 26. Rxc8 {[%clk 0:01:40.2]} 26...
Rxc8 {[%clk 0:01:11.1]} 27. Rc1 {[%clk 0:01:40.1]} 27... Rxc1+ {[%clk
0:01:10.3]} 28. Bxc1 {[%clk 0:01:39.7]} 28... Qc6 {[%clk 0:01:09.4]} 29. Qa3
{[%clk 0:01:12.6]} 29... Qc2 {[%clk 0:01:02.1]} 30. Qb2 {[%clk 0:01:11.8]} 30...
Qd1+ {[%clk 0:00:50.7]} 31. Kh2 {[%clk 0:01:11.3]} 31... g4 {[%clk 0:00:40.9]}
32. hxg4 {[%clk 0:01:10.8]} 32... hxg4 {[%clk 0:00:41.8]} 33. Ng1 {[%clk
0:01:04.6]} 33... Nxf2 {[%clk 0:00:41.7]} 34. Qxf2 {[%clk 0:01:02.9]} 34... g3+
{[%clk 0:00:41.9]} 0-1

[Event "*** Titled Tuesday Blitz"]
[Site "Chess.com"]
[Date "2021.02.16"]
[Round "3"]
[White "chesslh19"]
[Black "marianokar"]
[Result "0-1"]
[WhiteElo "2249"]
[BlackElo "2433"]
[TimeControl "180+1"]
[EndTime "10:29:34 PST"]
[Termination "marianokar won on time"]

1. e4 {[%clk 0:02:48.1]} 1... d5 {[%clk 0:02:38.5]} 2. exd5 {[%clk 0:02:49]}
2... Qxd5 {[%clk 0:02:38.3]} 3. Nc3 {[%clk 0:02:49.1]} 3... Qd8 {[%clk
0:02:38.8]} 4. d4 {[%clk 0:02:49.7]} 4... Nf6 {[%clk 0:02:39.3]} 5. Nf3 {[%clk
0:02:50.2]} 5... g6 {[%clk 0:02:40]} 6. Bc4 {[%clk 0:02:44.2]} 6... Bg7 {[%clk
0:02:40.5]} 7. Ne5 {[%clk 0:02:44.3]} 7... O-O {[%clk 0:02:40.8]} 8. O-O {[%clk
0:02:37.1]} 8... Nfd7 {[%clk 0:02:39.9]} 9. Nxd7 {[%clk 0:01:33.8]} 9... Nxd7
{[%clk 0:02:35.1]} 10. Be3 {[%clk 0:01:27.1]} 10... Nf6 {[%clk 0:02:33.1]} 11.
h3 {[%clk 0:01:20.3]} 11... a6 {[%clk 0:02:31.7]} 12. a4 {[%clk 0:01:18]} 12...
b6 {[%clk 0:02:28.6]} 13. Qd2 {[%clk 0:01:11.1]} 13... Bb7 {[%clk 0:02:27.6]}
14. Rad1 {[%clk 0:01:08.9]} 14... Qd7 {[%clk 0:02:23.6]} 15. Bh6 {[%clk
0:01:07.3]} 15... Qc6 {[%clk 0:02:22]} 16. d5 {[%clk 0:00:31.9]} 16... Qxc4
{[%clk 0:02:07.1]} 17. Be3 {[%clk 0:00:13.7]} 17... Rad8 {[%clk 0:02:04.6]} 18.
b3 {[%clk 0:00:13]} 18... Qh4 {[%clk 0:01:57.5]} 19. Bg5 {[%clk 0:00:11.6]}
19... Qb4 {[%clk 0:01:56.7]} 20. Qe3 {[%clk 0:00:05]} 20... Rfe8 {[%clk
0:01:52.1]} 21. Rd4 {[%clk 0:00:03.9]} 21... Qc5 {[%clk 0:01:50]} 22. Rfd1
{[%clk 0:00:04]} 22... b5 {[%clk 0:01:23]} 23. Bf4 {[%clk 0:00:03.7]} 23... b4
{[%clk 0:01:19.4]} 24. Ne4 {[%clk 0:00:02]} 24... Nxe4 {[%clk 0:01:18.3]} 25.
Rxe4 {[%clk 0:00:02.3]} 25... Qxe3 {[%clk 0:01:17.9]} 26. Rxe3 {[%clk
0:00:01.9]} 26... Rxd5 {[%clk 0:01:18]} 27. Rxd5 {[%clk 0:00:01.5]} 27... Bxd5
{[%clk 0:01:18.9]} 28. Bxc7 {[%clk 0:00:02.1]} 28... e6 {[%clk 0:01:18.8]} 0-1

[Event "*** Titled Tuesday Blitz"]
[Site "Chess.com"]
[Date "2021.02.16"]
[Round "3"]
[White "Mr_Heisenberg13"]
[Black "Bacyanide"]
[Result "1-0"]
[WhiteElo "2691"]
[BlackElo "2429"]
[TimeControl "180+1"]
[EndTime "10:29:36 PST"]
[Termination "Mr_Heisenberg13 won by resignation"]

1. d4 {[%clk 0:03:00.9]} 1... f5 {[%clk 0:02:57.6]} 2. Bg5 {[%clk 0:02:55.4]}
2... g6 {[%clk 0:02:55.8]} 3. Nc3 {[%clk 0:02:50.7]} 3... Nh6 {[%clk 0:02:50.1]}
4. h4 {[%clk 0:02:45.4]} 4... Nf7 {[%clk 0:02:45]} 5. Bf4 {[%clk 0:02:45.3]}
5... Bg7 {[%clk 0:02:36.2]} 6. Nf3 {[%clk 0:02:44.6]} 6... d6 {[%clk 0:02:33.7]}
7. e4 {[%clk 0:02:23.3]} 7... fxe4 {[%clk 0:02:25.7]} 8. Nxe4 {[%clk 0:02:24.2]}
8... O-O {[%clk 0:02:25.9]} 9. Qd2 {[%clk 0:02:20.5]} 9... Nc6 {[%clk
0:01:49.7]} 10. O-O-O {[%clk 0:02:14.5]} 10... Bg4 {[%clk 0:01:47.3]} 11. d5
{[%clk 0:01:41.6]} 11... Nce5 {[%clk 0:01:23.3]} 12. Nxe5 {[%clk 0:01:37.2]}
12... dxe5 {[%clk 0:01:21.2]} 13. Be3 {[%clk 0:01:31.8]} 13... Bxd1 {[%clk
0:01:20.6]} 14. Qxd1 {[%clk 0:01:32.7]} 14... c6 {[%clk 0:01:10.2]} 15. Bc4
{[%clk 0:01:31.5]} 15... Nd6 {[%clk 0:00:59.8]} 16. Nxd6 {[%clk 0:01:23.7]}
16... Qxd6 {[%clk 0:00:59.8]} 17. dxc6+ {[%clk 0:01:18.7]} 17... Kh8 {[%clk
0:00:59.6]} 18. Qxd6 {[%clk 0:01:18.2]} 18... exd6 {[%clk 0:01:00.5]} 19. cxb7
{[%clk 0:01:18.8]} 19... Rab8 {[%clk 0:00:51.6]} 20. Bd5 {[%clk 0:01:19.3]}
20... Rfe8 {[%clk 0:00:37.1]} 21. Bxa7 {[%clk 0:01:15.3]} 21... Rbd8 {[%clk
0:00:33.4]} 22. Re1 {[%clk 0:01:03.3]} 22... Bf6 {[%clk 0:00:31.7]} 23. Re4
{[%clk 0:00:57.5]} 23... Rf8 {[%clk 0:00:30.8]} 24. Rb4 {[%clk 0:00:51]} 24...
Rb8 {[%clk 0:00:29.1]} 25. Bxb8 {[%clk 0:00:50.5]} 25... Rxb8 {[%clk 0:00:30]}
26. Ra4 {[%clk 0:00:51]} 26... Bd8 {[%clk 0:00:27.9]} 27. Rc4 {[%clk 0:00:49.1]}
1-0

[Event "*** Titled Tuesday Blitz"]
[Site "Chess.com"]
[Date "2021.02.16"]
[Round "3"]
[White "Natalya_Buksa"]
[Black "ViktoriyaTarasova"]
[Result "1-0"]
[WhiteElo "2529"]
[BlackElo "2285"]
[TimeControl "180+1"]
[EndTime "10:29:36 PST"]
[Termination "Natalya_Buksa won by resignation"]

1. d4 {[%clk 0:03:00.9]} 1... Nf6 {[%clk 0:02:59.4]} 2. Nc3 {[%clk 0:03:01.3]}
2... d5 {[%clk 0:02:58.5]} 3. Bf4 {[%clk 0:03:01.2]} 3... Bf5 {[%clk 0:02:58.1]}
4. e3 {[%clk 0:03:00.9]} 4... c6 {[%clk 0:02:58.1]} 5. Nf3 {[%clk 0:03:01.4]}
5... h6 {[%clk 0:02:55.4]} 6. Ne5 {[%clk 0:03:01.4]} 6... Nbd7 {[%clk
0:02:52.2]} 7. g4 {[%clk 0:03:01.6]} 7... Bh7 {[%clk 0:02:52]} 8. h4 {[%clk
0:03:02.1]} 8... Nxe5 {[%clk 0:02:48.9]} 9. Bxe5 {[%clk 0:03:01.9]} 9... Nd7
{[%clk 0:02:47.6]} 10. Bg3 {[%clk 0:03:02]} 10... e6 {[%clk 0:02:43.6]} 11. Bd3
{[%clk 0:03:02.1]} 11... Bxd3 {[%clk 0:02:42.3]} 12. Qxd3 {[%clk 0:03:01.8]}
12... Bb4 {[%clk 0:02:43]} 13. a3 {[%clk 0:03:01]} 13... Bxc3+ {[%clk
0:02:42.5]} 14. Qxc3 {[%clk 0:03:01.4]} 14... Qe7 {[%clk 0:02:38.2]} 15. O-O-O
{[%clk 0:03:00.9]} 15... Rc8 {[%clk 0:02:30.4]} 16. g5 {[%clk 0:02:59.9]} 16...
h5 {[%clk 0:02:28.2]} 17. f3 {[%clk 0:02:44.3]} 17... g6 {[%clk 0:02:27.8]} 18.
e4 {[%clk 0:02:44.4]} 18... O-O {[%clk 0:02:21.5]} 19. Rhe1 {[%clk 0:02:42.2]}
19... Nb6 {[%clk 0:02:05.6]} 20. Be5 {[%clk 0:02:36]} 20... Nd7 {[%clk 0:02:04]}
21. Bg3 {[%clk 0:02:26.3]} 21... Rfd8 {[%clk 0:02:02.2]} 22. Re2 {[%clk
0:02:12.4]} 22... b5 {[%clk 0:01:42.1]} 23. Qd3 {[%clk 0:02:09.8]} 23... a6
{[%clk 0:01:39.9]} 24. Kb1 {[%clk 0:02:08.7]} 24... Qf8 {[%clk 0:01:32]} 25.
Rde1 {[%clk 0:02:01.6]} 25... Nb6 {[%clk 0:01:29.8]} 26. Be5 {[%clk 0:02:02]}
26... Nd7 {[%clk 0:01:29.8]} 27. Bf4 {[%clk 0:01:53.9]} 27... Re8 {[%clk
0:01:24.8]} 28. Bd2 {[%clk 0:01:53.9]} 28... Qd6 {[%clk 0:01:18.6]} 29. Bb4
{[%clk 0:01:52.7]} 29... Qc7 {[%clk 0:01:18.5]} 30. Qd2 {[%clk 0:01:45.7]} 30...
Qb7 {[%clk 0:01:03.6]} 31. Bd6 {[%clk 0:01:42.1]} 31... Nb6 {[%clk 0:00:56.7]}
32. Qf4 {[%clk 0:01:39.1]} 32... Nc4 {[%clk 0:00:52.7]} 33. Bc5 {[%clk 0:01:39]}
33... Nb6 {[%clk 0:00:43.7]} 34. Qd6 {[%clk 0:01:10.4]} 34... Nd7 {[%clk
0:00:42.6]} 35. Bb4 {[%clk 0:01:09.9]} 35... a5 {[%clk 0:00:42.9]} 36. Bxa5
{[%clk 0:01:09.4]} 36... Nb6 {[%clk 0:00:37.9]} 37. Bxb6 {[%clk 0:01:08]} 37...
Qxb6 {[%clk 0:00:37.9]} 38. exd5 {[%clk 0:01:08.5]} 38... cxd5 {[%clk
0:00:37.8]} 39. Qxb6 {[%clk 0:01:08.3]} 1-0

[Event "*** Titled Tuesday Blitz"]
[Site "Chess.com"]
[Date "2021.02.16"]
[Round "3"]
[White "Orest_Vovk"]
[Black "Kaslask"]
[Result "1/2-1/2"]
[WhiteElo "2407"]
[BlackElo "2248"]
[TimeControl "180+1"]
[EndTime "10:29:37 PST"]
[Termination "Game drawn by repetition"]

1. g4 {[%clk 0:03:00.9]} 1... Nc6 {[%clk 0:02:56.4]} 2. Bg2 {[%clk 0:03:00.4]}
2... d5 {[%clk 0:02:55.2]} 3. h3 {[%clk 0:02:59.8]} 3... e5 {[%clk 0:02:54.7]}
4. c4 {[%clk 0:02:53.6]} 4... d4 {[%clk 0:02:53.6]} 5. Bxc6+ {[%clk 0:02:54.5]}
5... bxc6 {[%clk 0:02:52.5]} 6. Qa4 {[%clk 0:02:54.3]} 6... Bd7 {[%clk
0:02:52.3]} 7. d3 {[%clk 0:02:54.7]} 7... Ne7 {[%clk 0:02:36.9]} 8. Nf3 {[%clk
0:02:53]} 8... Ng6 {[%clk 0:02:35.4]} 9. Nbd2 {[%clk 0:02:49.4]} 9... f6 {[%clk
0:02:33.2]} 10. Ne4 {[%clk 0:02:39.2]} 10... Be7 {[%clk 0:02:28.6]} 11. Rg1
{[%clk 0:02:32]} 11... O-O {[%clk 0:02:25.6]} 12. h4 {[%clk 0:02:31.8]} 12... c5
{[%clk 0:02:14.5]} 13. Qa5 {[%clk 0:02:31.2]} 13... Bc6 {[%clk 0:02:13.1]} 14.
h5 {[%clk 0:02:29.7]} 14... Nf4 {[%clk 0:02:10.3]} 15. Bxf4 {[%clk 0:02:29.1]}
15... exf4 {[%clk 0:02:10.2]} 16. Nxc5 {[%clk 0:02:26.1]} 16... Bxc5 {[%clk
0:01:56.6]} 17. Qxc5 {[%clk 0:02:25.2]} 17... Re8 {[%clk 0:01:56.4]} 18. Qxc6
{[%clk 0:02:24]} 18... Rb8 {[%clk 0:01:53.9]} 19. b3 {[%clk 0:02:17.9]} 19...
Qe7 {[%clk 0:01:52.2]} 20. Nxd4 {[%clk 0:02:15.6]} 20... Qb4+ {[%clk 0:01:48.2]}
21. Kf1 {[%clk 0:02:14.1]} 21... Qc3 {[%clk 0:01:43.5]} 22. Qd5+ {[%clk
0:02:12.5]} 22... Kh8 {[%clk 0:01:43.3]} 23. Kg2 {[%clk 0:02:09.4]} 23... Rbd8
{[%clk 0:01:42.7]} 24. Rac1 {[%clk 0:02:03.7]} 24... Qxd4 {[%clk 0:01:31]} 25.
Qxd4 {[%clk 0:02:01.2]} 25... Rxd4 {[%clk 0:01:30.7]} 26. Kf3 {[%clk 0:02:02.1]}
26... Rd6 {[%clk 0:01:18.4]} 27. g5 {[%clk 0:01:58.4]} 27... fxg5 {[%clk
0:01:15.5]} 28. Rxg5 {[%clk 0:01:56.4]} 28... Rde6 {[%clk 0:01:13.5]} 29. Rc2
{[%clk 0:01:55.8]} 29... h6 {[%clk 0:01:07]} 30. Rf5 {[%clk 0:01:53.8]} 30...
R8e7 {[%clk 0:01:05]} 31. Rf8+ {[%clk 0:01:50.7]} 31... Kh7 {[%clk 0:01:04.6]}
32. Rxf4 {[%clk 0:01:51.6]} 32... Re5 {[%clk 0:01:04.2]} 33. Kg4 {[%clk
0:01:36.3]} 33... Rg5+ {[%clk 0:01:03.7]} 34. Kh4 {[%clk 0:01:35.9]} 34... Ree5
{[%clk 0:01:03.1]} 35. e4 {[%clk 0:01:33.1]} 35... Rg2 {[%clk 0:00:56.7]} 36. d4
{[%clk 0:01:24.7]} 36... Reg5 {[%clk 0:00:53.5]} 37. Kh3 {[%clk 0:01:17.2]}
37... Rg1 {[%clk 0:00:52.8]} 38. Kh2 {[%clk 0:01:08]} 38... R5g2+ {[%clk
0:00:50.3]} 39. Kh3 {[%clk 0:01:07.8]} 39... Rg5 {[%clk 0:00:50.1]} 40. Kh2
{[%clk 0:00:55.7]} 40... R5g2+ {[%clk 0:00:49.3]} 41. Kh3 {[%clk 0:00:54.9]}
41... Rg5 {[%clk 0:00:49.9]} 1/2-1/2

[Event "*** Titled Tuesday Blitz"]
[Site "Chess.com"]
[Date "2021.02.16"]
[Round "3"]
[White "GMKrikor"]
[Black "SARGISMV"]
[Result "1-0"]
[WhiteElo "2808"]
[BlackElo "2445"]
[TimeControl "180+1"]
[EndTime "10:29:42 PST"]
[Termination "GMKrikor won by resignation"]

1. Nf3 {[%clk 0:03:00.9]} 1... Nf6 {[%clk 0:02:59]} 2. c4 {[%clk 0:03:00.8]}
2... c5 {[%clk 0:02:57.6]} 3. Nc3 {[%clk 0:03:00.7]} 3... g6 {[%clk 0:02:55.7]}
4. e4 {[%clk 0:02:57.3]} 4... d6 {[%clk 0:02:53.4]} 5. d4 {[%clk 0:02:57.8]}
5... cxd4 {[%clk 0:02:53]} 6. Nxd4 {[%clk 0:02:58.7]} 6... Bg7 {[%clk
0:02:53.5]} 7. Be2 {[%clk 0:02:53.3]} 7... O-O {[%clk 0:02:52.9]} 8. O-O {[%clk
0:02:52.7]} 8... Nc6 {[%clk 0:02:52.7]} 9. Be3 {[%clk 0:02:53.2]} 9... Bd7
{[%clk 0:02:52]} 10. h3 {[%clk 0:02:52.7]} 10... Nxd4 {[%clk 0:02:51.9]} 11.
Bxd4 {[%clk 0:02:53.6]} 11... Bc6 {[%clk 0:02:50.1]} 12. Qc2 {[%clk 0:02:53.2]}
12... a5 {[%clk 0:02:47.9]} 13. Rad1 {[%clk 0:02:51.4]} 13... Nd7 {[%clk
0:02:37.5]} 14. Bxg7 {[%clk 0:02:51.4]} 14... Kxg7 {[%clk 0:02:38.4]} 15. Bg4
{[%clk 0:02:51.9]} 15... Nf6 {[%clk 0:02:14.9]} 16. e5 {[%clk 0:02:49]} 16...
Nxg4 {[%clk 0:02:12.2]} 17. hxg4 {[%clk 0:02:49.9]} 17... Qc8 {[%clk 0:02:06]}
18. exd6 {[%clk 0:02:49.8]} 18... Qxg4 {[%clk 0:02:04]} 19. Nd5 {[%clk
0:02:20.5]} 19... exd6 {[%clk 0:01:43.9]} 20. Qc3+ {[%clk 0:02:15.2]} 20... f6
{[%clk 0:01:43.7]} 21. f3 {[%clk 0:02:12]} 21... Qf5 {[%clk 0:01:18.9]} 22. g4
{[%clk 0:01:51.1]} 22... Qe5 {[%clk 0:01:17.3]} 23. Qxe5 {[%clk 0:01:45.4]}
23... dxe5 {[%clk 0:00:43.6]} 24. Nc7 {[%clk 0:01:44.6]} 24... Rac8 {[%clk
0:00:34.5]} 25. Ne6+ {[%clk 0:01:44.1]} 25... Kf7 {[%clk 0:00:35.1]} 26. Nxf8
{[%clk 0:01:44.3]} 26... Kxf8 {[%clk 0:00:36]} 27. Kf2 {[%clk 0:01:33.8]} 27...
Ke7 {[%clk 0:00:36.3]} 28. Ke3 {[%clk 0:01:33.7]} 28... Ke6 {[%clk 0:00:36.4]}
29. Rd2 {[%clk 0:01:31.7]} 29... f5 {[%clk 0:00:21.5]} 30. gxf5+ {[%clk
0:01:32.6]} 30... gxf5 {[%clk 0:00:20.4]} 31. Rh1 {[%clk 0:01:26.1]} 31... Rc7
{[%clk 0:00:17.9]} 32. Rh6+ {[%clk 0:01:24.9]} 32... Kf7 {[%clk 0:00:10.7]} 33.
Rxh7+ {[%clk 0:01:23.6]} 33... Kg6 {[%clk 0:00:11.2]} 34. Rxc7 {[%clk
0:01:22.3]} 34... f4+ {[%clk 0:00:12.1]} 35. Kf2 {[%clk 0:01:22]} 35... Kf5
{[%clk 0:00:13]} 36. Rxc6 {[%clk 0:01:21.6]} 36... bxc6 {[%clk 0:00:13.9]} 37.
Rd6 {[%clk 0:01:21.9]} 1-0

[Event "*** Titled Tuesday Blitz"]
[Site "Chess.com"]
[Date "2021.02.16"]
[Round "3"]
[White "Nemsko"]
[Black "Kretov_Evgenij"]
[Result "0-1"]
[WhiteElo "2337"]
[BlackElo "2627"]
[TimeControl "180+1"]
[EndTime "10:29:42 PST"]
[Termination "Kretov_Evgenij won by resignation"]

1. e4 {[%clk 0:03:00.9]} 1... c5 {[%clk 0:02:59.5]} 2. Nf3 {[%clk 0:03:00.8]}
2... Nc6 {[%clk 0:02:59.8]} 3. d4 {[%clk 0:03:01.2]} 3... cxd4 {[%clk
0:03:00.3]} 4. Nxd4 {[%clk 0:03:02.1]} 4... g6 {[%clk 0:03:00.7]} 5. Nc3 {[%clk
0:03:01.8]} 5... Bg7 {[%clk 0:03:01]} 6. Be3 {[%clk 0:03:01.8]} 6... Nf6 {[%clk
0:03:01.4]} 7. Bc4 {[%clk 0:03:01.4]} 7... O-O {[%clk 0:03:01.5]} 8. h3 {[%clk
0:03:00.7]} 8... d6 {[%clk 0:03:01]} 9. O-O {[%clk 0:02:53]} 9... Bd7 {[%clk
0:03:01.2]} 10. a4 {[%clk 0:02:51.3]} 10... Nxd4 {[%clk 0:03:01.1]} 11. Bxd4
{[%clk 0:02:52.2]} 11... Bc6 {[%clk 0:03:01.5]} 12. f3 {[%clk 0:02:50]} 12... a6
{[%clk 0:03:00.8]} 13. a5 {[%clk 0:02:46.4]} 13... Nd7 {[%clk 0:03:00.8]} 14.
Bxg7 {[%clk 0:02:41.1]} 14... Kxg7 {[%clk 0:03:01.1]} 15. Qd4+ {[%clk
0:02:37.9]} 15... f6 {[%clk 0:03:01.3]} 16. Nd5 {[%clk 0:02:33.6]} 16... Rc8
{[%clk 0:03:00.9]} 17. Nf4 {[%clk 0:02:25.4]} 17... Nc5 {[%clk 0:02:53]} 18. b4
{[%clk 0:01:06.5]} 18... e5 {[%clk 0:02:51.5]} 19. Qxc5 {[%clk 0:01:06.5]} 19...
dxc5 {[%clk 0:02:42.8]} 20. Ne6+ {[%clk 0:01:06.5]} 20... Kh6 {[%clk 0:02:42.9]}
21. Nxd8 {[%clk 0:01:05.4]} 21... Rfxd8 {[%clk 0:02:43]} 22. bxc5 {[%clk
0:00:59.9]} 22... Rd4 {[%clk 0:02:33.5]} 23. Bd3 {[%clk 0:00:59.7]} 23... Kg5
{[%clk 0:02:27.4]} 24. Kf2 {[%clk 0:00:59.3]} 24... h5 {[%clk 0:02:27.3]} 25.
Rfd1 {[%clk 0:00:50.6]} 25... h4 {[%clk 0:02:25.3]} 26. Ke3 {[%clk 0:00:50.4]}
26... Rcd8 {[%clk 0:02:24.8]} 27. Be2 {[%clk 0:00:42]} 27... f5 {[%clk 0:02:25]}
28. exf5 {[%clk 0:00:39.6]} 28... gxf5 {[%clk 0:02:24.5]} 29. c3 {[%clk
0:00:37.7]} 29... R4d5 {[%clk 0:02:18.4]} 30. Rxd5 {[%clk 0:00:32.8]} 30... Rxd5
{[%clk 0:02:18.3]} 31. c4 {[%clk 0:00:17.9]} 31... Rxc5 {[%clk 0:02:14.7]} 32.
Ra3 {[%clk 0:00:15.7]} 32... Kf6 {[%clk 0:02:05.3]} 33. f4 {[%clk 0:00:14.8]}
33... exf4+ {[%clk 0:02:05.2]} 34. Kxf4 {[%clk 0:00:15.4]} 34... Bxg2 {[%clk
0:01:59]} 35. Rb3 {[%clk 0:00:08.1]} 35... Rxa5 {[%clk 0:01:56.4]} 36. Rb6+
{[%clk 0:00:08.3]} 36... Bc6 {[%clk 0:01:55.7]} 37. Bf3 {[%clk 0:00:07.8]} 37...
Rc5 {[%clk 0:01:56]} 38. Bxc6 {[%clk 0:00:06.4]} 38... Rxc6 {[%clk 0:01:53.1]}
39. Rxb7 {[%clk 0:00:06.6]} 39... Rxc4+ {[%clk 0:01:53.2]} 40. Kf3 {[%clk
0:00:07.2]} 40... a5 {[%clk 0:01:52.6]} 41. Rb6+ {[%clk 0:00:05.9]} 41... Kg5
{[%clk 0:01:52.4]} 42. Rb5 {[%clk 0:00:06.4]} 42... a4 {[%clk 0:01:52.3]} 43.
Ra5 {[%clk 0:00:06.2]} 43... Rc3+ {[%clk 0:01:52.3]} 44. Kg2 {[%clk 0:00:06.6]}
44... a3 {[%clk 0:01:52.1]} 45. Ra4 {[%clk 0:00:04.8]} 45... Rc2+ {[%clk
0:01:52.2]} 46. Kf3 {[%clk 0:00:04.8]} 46... a2 {[%clk 0:01:52.4]} 47. Ra3
{[%clk 0:00:03.5]} 47... Rh2 {[%clk 0:01:52.1]} 0-1